Cogmind - Beta 9.3 @@@ ROGUE MODE // 2019.12.30 @ 12:36:52 Player: 3.14 Result: Escaped! Performance ------------- Evolutions (9) 4500 Regions Visited (27) 5400 Robots Destroyed (267) 1335 Value Destroyed (15466) 15466 Prototype IDs (16) 320 Alien Tech Used (0) 0 Bonus (12935) 12935 TOTAL SCORE: 39956 Bonus ------- High Alert Combat Kills 502 Follower Combat Kills 2287 Entered Garrisons 2400 Used RIF Installer 6000 Win 3000 Friendly Fire -1254 Cogmind --------- Core Integrity 1511/1600 Matter 245/300 Energy 99/100 System Corruption 0% Temperature Cool (1) Movement Flying (40) Location To Epsilon Eridani Parts ------- > --- POWER (1) -------- (None) > --- PROPULSION (4) --- Improved Antigrav System Xenon Bombardment Thruster > --- UTILITY (18) ----- Relay Coupler [NC] (50) Relay Coupler [C] (52) > --- WEAPON (2) ------- Chainsword > --- INVENTORY (4) ---- Light Quantum Reactor Centrium Wheel Heavy Machine Gun Railgun Peak State ------------ > --- POWER ------------ Particle Reactor > --- PROPULSION ------- Improved Heavy Siege Treads > --- UTILITY ---------- Advanced Heat Sink Large Storage Unit Large Storage Unit High-capacity Storage Unit Advanced Target Analyzer Advanced Armor Integrity Analyzer Heavy Armor Plating Relay Coupler [C] Relay Coupler [C] Relay Coupler [C] Relay Coupler [C] Relay Coupler [ARC] Relay Coupler [Sentry] Relay Coupler [Sentry] Relay Coupler [Demolisher] Relay Coupler [Hunter] Relay Coupler [Hunter] > --- WEAPON ----------- Railgun Advanced Remote Datajack > --- INVENTORY -------- Particle Reactor Improved Heavy Siege Treads Improved Heavy Siege Treads Improved Heavy Siege Treads Experimental Energy Well Matter Compressor Relay Coupler [NC] Relay Coupler [C] Relay Coupler [C] Relay Coupler [Demolisher] Relay Coupler [Demolisher] Relay Coupler [Hunter] Relay Coupler [Hunter] Railgun Railgun Railgun Compact Tesla Bomb Launcher Smartbomb Launcher Advanced Remote Datajack Power Sword [Rating: 143] Favorites ----------- Power Reinforced Deuterium Engine Engine Reinforced Deuterium Engine Power Core Micro Fission Core Reactor Reinforced Antimatter Reactor Propulsion Medium Treads Treads Medium Treads Wheel Armored Wheel Hover Unit Improved Antigrav System Flight Unit Xenon Bombardment Thruster Utility Large Storage Unit Device Improved Heat Sink Storage Large Storage Unit Processor Advanced Target Analyzer Hackware Relay Coupler [Hunter] Protection Improved Light Armor Plating Weapon Gauss Rifle Energy Gun Gamma Rifle Energy Cannon Proton Cannon Ballistic Gun Gauss Rifle Ballistic Cannon Light Cannon Launcher Mini Grenade Launcher Special Weapon Remote Datajack Slashing Weapon Katana Special Melee Weapon Improved Datajack Build | -11 -10 -9 -8 -8 -8 -8 -7 -7 -7 -7 -6 -6 -6 -6 -5 -5 -5 -5 -4 -4 -3 -3 -3 -3 -2 -2 -1 ------- Run | Scr Mat Mat Mat Gar Mat Gar Fac Gar Fac Gar Fac Gar Fac Gar Fac Gar Fac Gar Fac Gar Res Gar Res Gar Res Gar Acc Slots Evolved 18 | . . 2 2 . . . 2 . . . 2 . . . 2 . . . 2 . 2 . . . 2 . 2 Power . | . . . . . . . . . . . . . . . . . . . . . . . . . . . . Propulsion 2 | . . . . . . . . . . . . . . . . . . . . . . . . . . . 2 Utility 16 | . . 2 2 . . . 2 . . . 2 . . . 2 . . . 2 . 2 . . . 2 . . Weapon . | . . . . . . . . . . . . . . . . . . . . . . . . . . . . Parts Attached 444 | 7 16 11 29 2 27 12 24 1 5 16 14 18 16 21 15 17 6 7 8 24 18 36 23 33 22 12 4 Power 23 | 1 1 1 3 . 1 1 1 . . 1 . 1 . . 1 . . 1 . 1 1 2 . 3 1 1 1 Engine 8 | 1 1 1 1 . . . 1 . . 1 . 1 . . . . . . . . . . . . . . 1 Core 7 | . . . 2 . 1 1 . . . . . . . . 1 . . 1 . 1 . . . . . . . Reactor 8 | . . . . . . . . . . . . . . . . . . . . . 1 2 . 3 1 1 . Propulsion 66 | 2 5 3 3 2 11 3 5 1 2 4 1 3 2 1 2 1 . . 1 1 1 1 2 2 4 2 1 Treads 33 | . . . . 2 3 3 1 1 . 3 1 2 1 1 2 1 . . 1 1 1 1 2 2 4 . . Leg . | . . . . . . . . . . . . . . . . . . . . . . . . . . . . Wheel 30 | 2 5 3 3 . 8 . 4 . 2 1 . 1 1 . . . . . . . . . . . . . . Hover 1 | . . . . . . . . . . . . . . . . . . . . . . . . . . . 1 Flight 2 | . . . . . . . . . . . . . . . . . . . . . . . . . . 2 . Utility 156 | 2 3 4 9 . 6 4 8 . 1 6 4 5 5 7 4 9 2 4 2 14 8 14 10 12 9 4 . Device 7 | . . . 1 . . . 1 . . . . . . . . . . . . . . 2 . 1 1 1 . Storage 21 | 2 3 1 2 . . 1 2 . . . . 1 1 . . . . 1 . 2 1 2 1 1 . . . Processor 2 | . . . . . . . . . . . . . . . . . . . . . 1 1 . . . . . Hackware 66 | . . . . . . . 2 . 1 1 4 2 2 5 2 7 2 1 1 9 4 2 5 5 8 3 . Protection 60 | . . 3 6 . 6 3 3 . . 5 . 2 2 2 2 2 . 2 1 3 2 7 4 5 . . . Artifact . | . . . . . . . . . . . . . . . . . . . . . . . . . . . . Weapon 199 | 2 7 3 14 . 9 4 10 . 2 5 9 9 9 13 8 7 4 2 5 8 8 19 11 16 8 5 2 Energy Gun 25 | 1 4 1 1 . . . 1 . . 2 . . . . . . . . . . 1 7 4 3 . . . Energy Cannon 4 | . . . 1 . . . . . . . . 1 . . . . 1 . . . 1 . . . . . . Ballistic Gun 69 | 1 1 2 8 . 7 2 4 . 1 2 5 3 2 5 1 2 . . . 4 2 4 3 6 1 2 1 Ballistic Cannon 5 | . 2 . . . . . 3 . . . . . . . . . . . . . . . . . . . . Launcher 15 | . . . 2 . 2 2 . . . 1 . 2 . 2 . 1 . 1 1 . . . . 1 . . . Special Weapon 42 | . . . . . . . . . . . 1 2 3 3 3 2 2 . 3 2 3 5 2 4 4 3 . Impact Weapon . | . . . . . . . . . . . . . . . . . . . . . . . . . . . . Slashing Weapon 31 | . . . . . . . . . . . 2 1 4 2 3 2 1 1 1 2 1 3 2 2 3 . 1 Piercing Weapon . | . . . . . . . . . . . . . . . . . . . . . . . . . . . . Special Melee Weapon 8 | . . . 2 . . . 2 . 1 . 1 . . 1 1 . . . . . . . . . . . . Unidentified Prototypes 7 | . . 2 2 . . . . . . . . . . . . . . . . . 2 . 1 . . . . Parts Lost 81 | . 2 . 5 . 2 1 3 . . 2 . 1 1 1 4 3 2 1 1 6 8 10 5 5 14 1 3 Power 5 | . . . 1 . . . 1 . . . . . . . . . . . . . . 1 . . 1 . 1 Propulsion 15 | . 1 . 2 . 1 . 1 . . . . . 1 . 1 . . . . . 1 1 1 . 4 . 1 Utility 50 | . . . 2 . 1 1 1 . . 2 . 1 . 1 2 3 2 1 1 6 4 5 3 4 9 . 1 Weapon 11 | . 1 . . . . . . . . . . . . . 1 . . . . . 3 3 1 1 . 1 . Highest Loss Streak 6 | . 2 . 3 . 2 1 2 . . 2 . 1 1 1 3 2 2 1 1 3 3 6 2 2 6 1 2 Average Slot Usage (%) 91 | . 98 100 98 100 96 99 95 92 92 90 93 94 98 98 95 93 89 90 87 87 88 86 90 91 63 18 25 Engine 2 | . 14 11 3 . . . 2 7 7 7 6 6 6 6 3 . . . . . . . . . . . 2 Core 2 | . . . 4 9 8 9 3 . . . . . . . 1 5 5 5 5 5 3 . . . . . . Reactor 1 | . . . . . . . . . . . . . . . . . . . . . . 4 4 4 2 . . Treads 5 | . . . . 16 4 18 7 15 7 9 6 6 6 6 4 5 5 5 5 5 3 4 4 4 4 . . Wheel 4 | . 27 22 17 1 13 . 5 . 7 4 6 6 5 6 4 . . . . . . . . . . . . Storage 25 | . 28 33 36 36 36 40 38 38 38 32 26 26 28 26 23 23 23 23 21 21 19 19 19 17 8 . . Processor 2 | . . . . . . . . . . . . . . . . . . . . . 1 8 9 9 4 . . Hackware 23 | . . . . . . . 2 . 4 4 24 26 31 28 33 36 36 35 36 38 45 31 39 41 32 11 11 Protection 8 | . . 11 12 18 15 12 10 15 9 13 7 7 4 9 9 8 5 9 10 7 3 7 3 2 2 . . Ballistic Gun 8 | . 5 17 16 18 16 17 10 15 15 10 10 9 8 9 7 4 2 . . 5 4 3 3 7 2 . 1 Special Weapon 1 | . . . . . . . . . . . . . 2 . 1 3 3 3 3 2 2 . 1 . 1 1 . Slashing Weapon 1 | . . . . . . . . . . . . . . 2 1 2 3 4 5 2 1 2 1 . 1 2 2 Naked Turns 51 | . . . . . . . . . . . . . . . . . . . . . . . . . 51 . . Heaviest Build 162 | 16 41 64 92 82 93 96 136 136 136 134 128 128 142 127 127 121 122 124 120 124 122 162 147 147 110 10 7 Greatest Support 75 | 20 32 32 26 56 56 56 56 56 12 56 12 20 20 20 70 70 70 70 70 70 70 70 70 60 75 14 7 Greatest Overweight (x) 36 | . 1 3 8 3 7 1 11 2 11 11 10 10 11 10 10 1 1 1 1 1 36 2 2 2 1 3 . Average Overweight (x) 3 | . . 1 3 1 4 1 7 2 11 6 10 7 9 8 8 1 1 1 1 1 1 1 2 1 . . . Largest Inventory Capacity 42 | 8 16 22 28 28 28 34 42 36 36 36 30 36 38 32 32 32 32 32 32 32 32 32 32 32 24 4 4 Average Capacity 29 | 7 11 21 27 28 28 31 35 36 36 32 30 30 33 32 32 32 32 32 32 32 32 32 32 29 16 4 4 Most Carried 36 | 8 14 22 28 28 28 34 36 36 36 36 30 30 34 32 32 32 31 32 32 32 32 32 32 32 24 4 4 Average Carried 28 | 4 10 20 25 28 27 29 32 35 36 31 29 29 31 31 30 30 29 29 30 29 29 29 31 27 15 3 3 Final Capacity 36 | 8 16 22 28 28 28 34 36 36 36 30 30 30 32 32 32 32 32 32 32 32 32 32 32 24 4 4 4 Final Carried 36 | 8 14 22 28 28 28 34 36 36 36 30 30 30 30 32 32 31 29 32 31 32 28 30 30 24 4 4 4 Class Distribution -------------------- 53% | Botlord-Mutant 18% | Hauler-Mutant 13% | Bothacker-Mutant 8% | Scavenger-Mutant 5% | Mutant Dominant Class ---------------- Mutant | -10/Materials Hauler-Mutant | -9/Materials Hauler-Mutant | -8/Materials Hauler-Mutant | -8/Garrison Hauler-Mutant | -8/Materials Hauler-Mutant | -8/Garrison Bothacker-Mutant | -7/Factory Bothacker-Mutant | -7/Garrison Bothacker-Mutant | -7/Factory Bothacker-Mutant | -7/Garrison Botlord-Mutant | -6/Factory Botlord-Mutant | -6/Garrison Botlord-Mutant | -6/Factory Botlord-Mutant | -6/Garrison Botlord-Mutant | -5/Factory Botlord-Mutant | -5/Garrison Botlord-Mutant | -5/Factory Botlord-Mutant | -5/Garrison Botlord-Mutant | -4/Factory Botlord-Mutant | -4/Garrison Botlord-Mutant | -3/Research Scavenger-Mutant | -3/Garrison Botlord-Mutant | -3/Research Botlord-Mutant | -3/Garrison Botlord-Mutant | -2/Research Mutant | -2/Garrison Mutant | -1/Access Resources | -11 -10 -9 -8 -8 -8 -8 -7 -7 -7 -7 -6 -6 -6 -6 -5 -5 -5 -5 -4 -4 -3 -3 -3 -3 -2 -2 -1 ----------- Run | Scr Mat Mat Mat Gar Mat Gar Fac Gar Fac Gar Fac Gar Fac Gar Fac Gar Fac Gar Fac Gar Res Gar Res Gar Res Gar Acc Matter Collected 11156 | 289 213 314 635 94 747 472 449 434 82 150 228 420 228 387 275 240 135 378 35 776 419 1103 685 1360 412 173 23 Remotely . | . . . . . . . . . . . . . . . . . . . . . . . . . . . . Salvage Created 13552 | 217 601 738 975 151 1190 498 392 769 54 251 333 697 146 338 144 132 70 329 436 727 794 1624 946 845 68 64 23 Parts 682 | 17 34 54 57 10 59 34 17 46 3 10 15 22 11 14 8 11 2 12 6 24 49 69 52 31 8 4 3 Haulers Intercepted 3 | . . 1 2 . . . . . . . . . . . . . . . . . . . . . . . . Recyclers Shooed 7 | . . . . . 1 . . . . . 1 . . . . . . . . . 5 . . . . . . Parts Field Recycled . | . . . . . . . . . . . . . . . . . . . . . . . . . . . . Retrieved Matter . | . . . . . . . . . . . . . . . . . . . . . . . . . . . . Parts Self-Destructed . | . . . . . . . . . . . . . . . . . . . . . . . . . . . . Prevented . | . . . . . . . . . . . . . . . . . . . . . . . . . . . . Kills | -11 -10 -9 -8 -8 -8 -8 -7 -7 -7 -7 -6 -6 -6 -6 -5 -5 -5 -5 -4 -4 -3 -3 -3 -3 -2 -2 -1 ------- Run | Scr Mat Mat Mat Gar Mat Gar Fac Gar Fac Gar Fac Gar Fac Gar Fac Gar Fac Gar Fac Gar Res Gar Res Gar Res Gar Acc Combat Hostiles Destroyed 224 | . 11 12 18 3 25 17 8 18 2 7 4 16 3 7 1 5 1 5 6 8 8 16 10 11 1 1 . Melee 10 | . . . . . . . . . . . . . 2 . . 1 . 1 2 . 1 1 2 . . . . Guns 159 | . 10 11 12 3 23 12 7 18 2 2 4 6 1 3 1 1 . . . 8 7 10 7 9 1 1 . Cannons 5 | . 1 1 1 . . . 1 . . . . 1 . . . . . . . . . . . . . . . AOE 39 | . . . 5 . 2 5 . . . 3 . 9 . 4 . 3 . 4 4 . . . . . . . . Classes Destroyed 15 | 3 3 3 1 . 2 1 1 . . . . . . . . . . . . 1 . . . . . . . Worker 8 | 2 . 2 2 . . . . . . . . . . . . . . . . . 1 . 1 . . . . Builder 3 | . . 1 1 . . . . . . . . . . . . . . . . . 1 . . . . . . Tunneler 6 | 4 . . . . 1 . . . . . . . . . . . . . . . . . . . . . 1 Hauler 3 | . . 1 2 . . . . . . . . . . . . . . . . . . . . . . . . Recycler 15 | 1 2 3 2 . . . 1 . . . 1 . . . . . . . 1 . 2 . 2 . . . . Mechanic 1 | . . . . . 1 . . . . . . . . . . . . . . . . . . . . . . Watcher 3 | . 1 1 . . . . . . . . . . . . . 1 . . . . . . . . . . . Swarmer 64 | . 3 5 3 . 5 5 . 7 2 4 1 9 1 5 . 4 . 6 . 2 . 2 . . . . . Grunt 87 | . 8 2 9 3 12 8 6 11 . . 2 3 . 2 . 1 . . 6 4 3 5 . 2 . . . Brawler 6 | . . . . . 2 1 . . . 2 . 1 . . . . . . . . . . . . . . . Duelist 7 | . . . . . . 2 1 . . . . . . . . . . . . . . 2 . 2 . . . Sentry 35 | . . 5 5 . 6 1 . . . . . . 1 2 1 . . . . 1 . 4 2 7 . . . Hunter 6 | . . . 1 . . . . . . 1 . 3 . . . . 1 . . . . . . . . . . Programmer 21 | . . . . . . . 1 . . . 1 . 1 . 1 . . . . . 5 2 8 . 1 1 . Behemoth 2 | . . . . . . . . . . . . . . . . . . . . 1 . 1 . . . . . Best Kill Streak 9 | 3 6 4 9 3 5 9 4 5 2 4 2 5 1 4 1 4 1 4 5 4 4 4 3 3 1 1 1 Combat Bots Only 9 | . 5 3 7 3 4 9 4 5 2 4 2 5 1 4 1 4 1 4 4 4 3 4 2 3 1 1 . Max Kills in Single Turn 3 | 1 1 1 2 1 2 2 1 1 1 2 1 2 1 2 1 2 1 3 2 1 2 1 1 2 1 1 1 Gunslinging 1 | . . . . . . . . . . . . . . . . . . . . . . . . 1 . . . Exploded 3 | . . . 2 . 1 2 . . . 2 . 2 . 2 . 2 . 3 2 . . . . . . . . Melee 1 | . . . . . . . . . . . . . 1 . . 1 . 1 1 . 1 1 1 . . . . Uniques/NPCs Destroyed . | . . . . . . . . . . . . . . . . . . . . . . . . . . . . Combat | -11 -10 -9 -8 -8 -8 -8 -7 -7 -7 -7 -6 -6 -6 -6 -5 -5 -5 -5 -4 -4 -3 -3 -3 -3 -2 -2 -1 -------- Run | Scr Mat Mat Mat Gar Mat Gar Fac Gar Fac Gar Fac Gar Fac Gar Fac Gar Fac Gar Fac Gar Res Gar Res Gar Res Gar Acc Damage Taken 26954 | . 432 368 1017 156 1497 666 842 927 222 413 150 1361 473 451 836 601 242 152 679 1648 1541 2756 2801 2836 2914 722 251 Core 3993 | . 62 68 92 11 183 53 63 46 16 38 . 175 50 122 100 178 . 9 111 175 94 278 231 346 831 572 89 Absorbed by Shields 2118 | . . . . 59 . . . . . . . . . 18 . . . 9 . 116 . 1095 . 726 . 95 . Reduced by Siege Mode 350 | . . . . . . . . . . . . . . . . . . . . . . 79 114 157 . . . Core Remaining (%) 63 | 100 75 83 . . . 38 . . . 76 . . . 59 . . . 71 . 75 . . . 27 . 3 94 Volleys Fired 889 | 19 40 36 63 9 87 34 31 44 4 19 13 43 14 22 29 20 13 16 9 32 39 85 59 68 30 10 1 Largest 2 | 2 2 2 2 2 2 2 2 2 2 2 2 2 2 2 2 1 1 1 1 2 2 2 2 2 2 2 1 Hottest 150 | 70 105 100 63 48 56 56 96 56 56 110 60 75 60 60 60 40 75 46 46 65 58 150 150 150 70 65 35 Shots Fired 1496 | 38 80 72 118 18 170 61 62 88 8 29 25 57 15 33 43 20 14 16 9 54 72 140 94 115 32 12 1 Gun 1238 | 38 71 61 110 18 166 54 45 88 8 27 24 32 2 23 36 4 1 . . 46 67 129 78 99 6 4 1 Cannon 51 | . 9 11 2 . . . 17 . . . . 6 . . . . 6 . . . . . . . . . . Launcher 41 | . . . 6 . 4 7 . . . 2 . 10 . 3 . 3 . 2 3 . . . . 1 . . . Special 166 | . . . . . . . . . . . 1 9 13 7 7 13 7 14 6 8 5 11 16 15 26 8 . Kinetic 1102 | 19 46 61 110 18 166 54 62 88 8 3 24 32 2 23 36 4 1 . . 46 67 78 62 81 6 4 1 Thermal 57 | 19 21 11 . . . . . . . . . . . . . . . . . . . 6 . . . . . Explosive 40 | . . . 6 . 4 7 . . . 2 . 10 . 3 . 3 . 2 3 . . . . . . . . Electromagnetic 131 | . 13 . 2 . . . . . . 24 . 6 . . . . 6 . . . . 45 16 19 . . . Robot Hit Streak 30 | 8 8 7 30 8 22 12 10 14 3 14 5 15 11 6 12 13 8 14 8 23 14 24 11 21 7 4 . Robot Miss Streak 5 | 2 5 2 3 1 5 5 4 2 2 1 3 2 3 2 3 2 2 3 1 5 3 3 4 2 1 1 . Penetration Max 2 | . . . . . 1 1 1 1 . . . . . . 1 . . . . 1 2 1 . 1 . . . Secondary Targets 21 | . 1 1 . . 6 1 2 2 . . . . . . . . . . . . 2 2 1 2 . 1 . Max Gunslinging Chain 1 | . 1 1 . . 1 1 1 1 . . . . . . . . . . . . 1 1 1 1 . 1 . Shots Hit Robots 1207 | 30 41 45 91 11 129 37 50 55 6 20 20 46 14 25 34 12 10 32 23 63 55 147 84 91 25 9 2 Core Hits 540 | 12 23 26 60 5 52 30 19 30 2 13 9 36 3 11 5 9 1 11 14 33 24 43 27 33 6 2 1 Critical Hits 41 | . . 1 1 . 3 1 2 1 . . . 1 . . . . . 1 . 2 3 13 6 6 . . . Critical Kills 14 | . . 1 . . . . . 1 . . . 1 . . . . . . . 2 1 2 5 1 . . . Critical Parts Destroyed 23 | . . . 1 . 2 1 2 . . . . . . . . . . 1 . . 2 8 1 5 . . . Melee Attacks 253 | . . . . . . . 15 . 3 . 8 13 14 6 12 16 6 23 21 17 12 41 29 4 6 1 6 Impact . | . . . . . . . . . . . . . . . . . . . . . . . . . . . . Slashing 229 | . . . . . . . . . . . 3 13 14 5 12 16 6 23 21 17 12 41 29 4 6 1 6 Piercing . | . . . . . . . . . . . . . . . . . . . . . . . . . . . . Sneak Attacks 28 | . . . . . . . 7 . . . 3 . 1 4 2 1 . 3 1 . . . 1 3 . . 2 Combat Hostiles 8 | . . . . . . . . . . . . . 1 . . 1 . 2 1 . . . . 3 . . . Follow-up Attacks . | . . . . . . . . . . . . . . . . . . . . . . . . . . . . Damage Inflicted 32843 | 301 448 715 1893 190 2318 1567 1163 1210 63 549 418 2813 212 1016 922 421 186 2085 1239 1835 1456 4673 2359 2352 183 42 214 Guns 19129 | 301 392 534 1319 190 2223 926 860 1210 63 318 408 416 31 264 718 49 48 . . 1068 1334 2618 1659 1990 159 31 . Cannons 859 | . 56 181 51 . . . 303 . . . . 130 . . . . 138 . . . . . . . . . . Explosions 4688 | . . . 523 . 95 641 . . . 231 . 1324 . 386 . 288 . 434 698 . . . . 68 . . . Melee 8012 | . . . . . . . . . . . . 943 181 366 204 84 . 1651 541 767 65 2055 647 294 . . 214 Ramming 155 | . . . . . . . . . . . 10 . . . . . . . . . 57 . 53 . 24 11 . Kinetic 17313 | 125 247 657 1319 190 2223 926 1163 1210 63 23 408 416 31 264 718 49 48 . . 1068 1334 1647 1428 1566 159 31 . Thermal 433 | 176 69 58 . . . . . . . . . . . . . . . . . . . 130 . . . . . Explosive 4620 | . . . 523 . 95 641 . . . 231 . 1324 . 386 . 288 . 434 698 . . . . . . . . Electromagnetic 2310 | . 132 . 51 . . . . . . 295 . 130 . . . . 138 . . . . 841 231 492 . . . Impact . | . . . . . . . . . . . . . . . . . . . . . . . . . . . . Slashing 8012 | . . . . . . . . . . . . 943 181 366 204 84 . 1651 541 767 65 2055 647 294 . . 214 Piercing . | . . . . . . . . . . . . . . . . . . . . . . . . . . . . Highest Corruption 27 | . . . . . 2 2 2 2 2 8 . . 1 1 5 10 10 10 . . 8 13 27 27 4 6 . Average Corruption 10 | . . . . . 2 2 1 2 2 4 . . 1 1 4 7 10 10 . . 5 12 20 27 1 5 . Corruption Purged . | . . . . . . . . . . . . . . . . . . . . . . . . . . . . Effects 471 | . . . . . . 15 2 7 2 13 . . 3 4 7 29 13 25 . . 26 104 84 131 2 4 . Message Errors 82 | . . . . . . 2 1 3 . 4 . . 2 . . 8 3 2 . . 3 17 21 15 . 1 . Matter Fused 80 | . . . . . . . . . . . . . . . 1 4 3 6 . . 3 20 17 26 . . . Heat Flow Errors 40 | . . . . . . 2 . 1 1 5 . . . . 1 2 1 1 . . 1 11 3 10 1 . . Energy Discharges 46 | . . . . . . 1 . 1 . 2 . . . 4 1 4 . 3 . . 1 7 7 13 1 1 . Parts Rejected 2 | . . . . . . . . . . . . . . . . 1 . . . . 1 . . . . . . Data Loss (minor) 45 | . . . . . . 8 . . . 1 . . 1 . . 5 2 4 . . 3 7 5 8 . 1 . Data Loss (major) 13 | . . . . . . . . . . . . . . . 1 . . 2 . . 3 3 1 3 . . . Misfires 9 | . . . . . . . . . . . . . . . . 1 1 . . . 1 2 3 1 . . . Alerts 5 | . . . . . . . . . . . . . . . . . . 1 . . . 2 2 . . . . Misdirections 33 | . . . . . . . . . . . . . . . . 2 . . . . . 11 6 14 . . . Targeting Errors 103 | . . . . . . 2 1 2 1 1 . . . . 2 1 3 6 . . 8 22 17 36 . 1 . Weapon Failures 13 | . . . . . . . . . . . . . . . 1 1 . . . . 2 2 2 5 . . . Overload Shots . | . . . . . . . . . . . . . . . . . . . . . . . . . . . . Overflow Damage 1046 | . . . . . . 5 5 . . . . 221 . 22 . 6 11 193 145 37 . 222 91 27 . . 61 Projectiles 16 | . . . . . . . 5 . . . . . . . . . 11 . . . . . . . . . . Explosions 69 | . . . . . . 5 . . . . . 38 . 15 . 6 . 3 2 . . . . . . . . Melee 961 | . . . . . . . . . . . . 183 . 7 . . . 190 143 37 . 222 91 27 . . 61 Knockbacks 7 | . . 1 . . . . 5 . . . . . . . . . . . . . . . 1 . . . . Impact 1 | . . . . . . . . . . . . . . . . . . . . . . . 1 . . . . Kinetic 5 | . . 1 . . . . 4 . . . . . . . . . . . . . . . . . . . . Secondary 1 | . . . . . . . 1 . . . . . . . . . . . . . . . . . . . . Self-Inflicted Damage 200 | . . . . . . 28 . . . . 5 56 . . . 96 . . . . . . . . 10 5 . Shots 4 | . . . . . . 1 . . . . . 1 . . . 2 . . . . . . . . . . . Rammed 21 | . . . . . . . . . . . 2 . . . . . . . . . 2 . 5 . 8 4 . Targets Rammed 22 | . . . . . . . . . . . 2 . . . . . . . . . 2 . 6 . 8 4 . Kicked . | . . . . . . . . . . . . . . . . . . . . . . . . . . . . Crushed 1 | . . . . . . . . . . . . . . . . . . . . . . . 1 . . . . Highest Temperature 446 | 90 178 225 446 91 27 242 329 195 191 339 129 240 18 19 231 172 265 259 27 31 201 287 262 280 233 4 . Average Temperature 73 | 40 52 65 55 51 7 39 120 56 53 135 39 64 6 6 65 62 75 100 9 22 65 101 68 92 43 1 . Received Heat Transfer 4626 | . 198 117 459 84 675 288 333 351 . . 54 144 30 90 54 . 36 31 156 190 120 358 132 292 342 92 . Effects 9 | . . . 2 . . . 2 . . 2 . . . . . . . . . . . 3 . . . . . Shutdowns 2 | . . . 1 . . . 1 . . . . . . . . . . . . . . . . . . . . Energy Bleed 2 | . . . . . . . 1 . . . . . . . . . . . . . . 1 . . . . . Interference 3 | . . . 1 . . . . . . . . . . . . . . . . . . 2 . . . . . Matter Decay 1 | . . . . . . . . . . 1 . . . . . . . . . . . . . . . . . Short Circuit 1 | . . . . . . . . . . 1 . . . . . . . . . . . . . . . . . Siege Activations 11 | . . . . . . . . . . . . . . . . . . . . . . 3 3 5 . . . Total Turns 212 | . . . . . . . . . . . . . . . . . . . . . . 65 79 68 . . . Longest Duration 50 | . . . . . . . . . . . . . . . . . . . . . . 38 50 24 . . . Robots Corrupted 11 | . . . . . . . . . . 2 . . . . . . 1 . . . . 5 1 2 . . . Combat Hostiles 11 | . . . . . . . . . . 2 . . . . . . 1 . . . . 5 1 2 . . . Parts Fried 16 | . . . . . . . . . . 1 . 2 . . . . 1 . . . . 6 1 5 . . . Impact Corruptions 1 | . . . . . . . . . . . . . . . . . . . . . . . 1 . . . . Robots Melted . | . . . . . . . . . . . . . . . . . . . . . . . . . . . . Combat Hostiles . | . . . . . . . . . . . . . . . . . . . . . . . . . . . . Parts Melted 2 | . . . . . . . . . . . . . . . . . . . . . . 1 . 1 . . . Heat Transferred 1151 | 518 185 148 . . . . . . . . . . . . . . . . . . . 300 . . . . . Parts Sabotaged . | . . . . . . . . . . . . . . . . . . . . . . . . . . . . Parts Stolen . | . . . . . . . . . . . . . . . . . . . . . . . . . . . . Parts Stripped . | . . . . . . . . . . . . . . . . . . . . . . . . . . . . Power Chain Reactions . | . . . . . . . . . . . . . . . . . . . . . . . . . . . . Missiles Intercepted . | . . . . . . . . . . . . . . . . . . . . . . . . . . . . Alert | -11 -10 -9 -8 -8 -8 -8 -7 -7 -7 -7 -6 -6 -6 -6 -5 -5 -5 -5 -4 -4 -3 -3 -3 -3 -2 -2 -1 ------- Run | Scr Mat Mat Mat Gar Mat Gar Fac Gar Fac Gar Fac Gar Fac Gar Fac Gar Fac Gar Fac Gar Res Gar Res Gar Res Gar Acc Peak Influence 1013 | 35 319 310 492 361 491 859 1013 560 335 439 399 524 357 304 174 254 70 139 228 281 195 493 380 231 151 50 65 Average Influence 236 | 13 180 115 320 343 262 644 689 298 317 320 248 327 188 139 118 145 34 54 102 155 105 289 201 120 61 15 47 Maximum Alert Level 3 | . 1 1 2 1 2 3 3 2 1 2 1 2 1 1 . 1 . . 1 1 . 2 1 1 . . . Low Security (%) 50 | 100 57 73 15 . 21 . 5 29 . . 17 39 48 64 100 82 100 100 83 55 100 24 46 84 100 100 100 Level 1 34 | . 42 26 60 100 70 4 . 39 100 81 82 25 51 35 . 17 . . 16 44 . 50 53 15 . . . Level 2 11 | . . . 23 . 7 63 42 30 . 18 . 35 . . . . . . . . . 24 . . . . . Level 3 4 | . . . . . . 31 52 . . . . . . . . . . . . . . . . . . . . Level 4 . | . . . . . . . . . . . . . . . . . . . . . . . . . . . . Level 5 . | . . . . . . . . . . . . . . . . . . . . . . . . . . . . High Security . | . . . . . . . . . . . . . . . . . . . . . . . . . . . . Max Security . | . . . . . . . . . . . . . . . . . . . . . . . . . . . . Squads Dispatched 33 | . 2 1 1 . 4 . 2 . . . 1 . 1 . 1 . . . . . 4 . 8 . 6 . 2 Investigation 3 | . 1 1 . . . . . . . . . . . . . . . . . . . . . . 1 . . Extermination 11 | . . . . . . . 1 . . . 1 . 1 . 1 . . . . . 3 . 3 . 1 . . Reinforcement 14 | . 1 . 1 . 4 . 1 . . . . . . . . . . . . . 1 . 2 . 2 . 2 Assault 1 | . . . . . . . . . . . . . . . . . . . . . . . . . 1 . . Garrison 4 | . . . . . . . . . . . . . . . . . . . . . . . 3 . 1 . . Intercept . | . . . . . . . . . . . . . . . . . . . . . . . . . . . . Construction Impeded 4 | . . . . . 1 . . . . . . . . . . . . . . . 1 . . . 1 . 1 Haulers Reinforced 2 | . . . . . . . . . . . . . . . . . . . . . . . 1 . 1 . . Alert ID Control Effect 61 | . . . . . . . . . 1 . 2 1 . 2 4 4 1 7 . 3 1 3 12 12 7 1 . Stealth | -11 -10 -9 -8 -8 -8 -8 -7 -7 -7 -7 -6 -6 -6 -6 -5 -5 -5 -5 -4 -4 -3 -3 -3 -3 -2 -2 -1 --------- Run | Scr Mat Mat Mat Gar Mat Gar Fac Gar Fac Gar Fac Gar Fac Gar Fac Gar Fac Gar Fac Gar Res Gar Res Gar Res Gar Acc Distress Signals 16 | . 1 1 1 . 4 . . . . . . . . . . . . . . . 1 . 2 . 4 . 2 Communications Jammed . | . . . . . . . . . . . . . . . . . . . . . . . . . . . . Distress Signals . | . . . . . . . . . . . . . . . . . . . . . . . . . . . . Times Spotted 504 | . 21 19 33 3 37 19 17 20 3 7 8 25 10 17 9 16 8 17 8 21 14 33 32 34 41 26 6 Peak Tracking Total 13 | . 6 3 9 3 6 4 5 5 3 4 3 6 3 6 6 6 4 9 4 10 4 5 4 10 12 13 10 Tactical Retreats 48 | . 1 2 6 . 2 1 2 2 . . . 4 . 1 1 2 1 1 . 1 . 8 1 . 6 3 3 Traps | -11 -10 -9 -8 -8 -8 -8 -7 -7 -7 -7 -6 -6 -6 -6 -5 -5 -5 -5 -4 -4 -3 -3 -3 -3 -2 -2 -1 ------- Run | Scr Mat Mat Mat Gar Mat Gar Fac Gar Fac Gar Fac Gar Fac Gar Fac Gar Fac Gar Fac Gar Res Gar Res Gar Res Gar Acc Traps Triggered 59 | . 2 . . 2 1 9 . 5 . 6 . 3 2 4 . 5 . . . 6 2 5 1 4 2 . . Indirectly . | . . . . . . . . . . . . . . . . . . . . . . . . . . . . Trap Hack Attempts 8 | . . . 8 . . . . . . . . . . . . . . . . . . . . . . . . Triggered . | . . . . . . . . . . . . . . . . . . . . . . . . . . . . Disarmed 1 | . . . 1 . . . . . . . . . . . . . . . . . . . . . . . . Reprogrammed . | . . . . . . . . . . . . . . . . . . . . . . . . . . . . Reused . | . . . . . . . . . . . . . . . . . . . . . . . . . . . . Traps Extracted . | . . . . . . . . . . . . . . . . . . . . . . . . . . . . Installed . | . . . . . . . . . . . . . . . . . . . . . . . . . . . . Triggered . | . . . . . . . . . . . . . . . . . . . . . . . . . . . . Machines | -11 -10 -9 -8 -8 -8 -8 -7 -7 -7 -7 -6 -6 -6 -6 -5 -5 -5 -5 -4 -4 -3 -3 -3 -3 -2 -2 -1 ---------- Run | Scr Mat Mat Mat Gar Mat Gar Fac Gar Fac Gar Fac Gar Fac Gar Fac Gar Fac Gar Fac Gar Res Gar Res Gar Res Gar Acc Machines Disabled 35 | . . . 1 . 1 3 . 2 . 1 3 3 1 2 . 2 . . 1 3 1 3 1 5 . 1 1 Max in Single Turn 2 | . . . 1 . 1 1 . 1 . 1 2 1 . 1 . 1 . . 1 1 1 1 . 1 . 1 1 Garrison Access 2 | . . . . . . . . . . . . . . . . . . . . . . . . . 1 . 1 Garrison Relay 23 | . . . . . . 3 . 2 . 1 . 2 . 2 . 2 . . . 3 . 3 . 4 . 1 . Energy Cycler 1 | . . . . . . . . . . . . . . . . . . . . . . . . . . . 1 Machines Sabotaged . | . . . . . . . . . . . . . . . . . . . . . . . . . . . . Garrisons Compromised . | . . . . . . . . . . . . . . . . . . . . . . . . . . . . Overloaded Fab Kills . | . . . . . . . . . . . . . . . . . . . . . . . . . . . . Fab Network Shutdowns 1 | . . . . . . . 1 . . . . . . . . . . . . . . . . . . . . Hacking | -11 -10 -9 -8 -8 -8 -8 -7 -7 -7 -7 -6 -6 -6 -6 -5 -5 -5 -5 -4 -4 -3 -3 -3 -3 -2 -2 -1 --------- Run | Scr Mat Mat Mat Gar Mat Gar Fac Gar Fac Gar Fac Gar Fac Gar Fac Gar Fac Gar Fac Gar Res Gar Res Gar Res Gar Acc Machines Accessed 37 | . 2 4 2 . 8 . 5 . 1 . 2 . 2 . 2 . 1 . 1 . 1 . 2 . 2 . 2 Terminals 12 | . 1 2 . . 5 . 1 . . . 1 . 1 . 1 . . . . . . . . . . . . Fabricators 3 | . . . . . . . 1 . . . . . . . . . . . . . . . 1 . . . 1 Repair Stations 6 | . 1 . . . 2 . 2 . . . . . . . . . . . . . . . . . 1 . . Recycling Units 1 | . . 1 . . . . . . . . . . . . . . . . . . . . . . . . . Scanalyzers 2 | . . 1 1 . . . . . . . . . . . . . . . . . . . . . . . . Garrison Access 13 | . . . 1 . 1 . 1 . 1 . 1 . 1 . 1 . 1 . 1 . 1 . 1 . 1 . 1 Total Hacks 85 | . 6 15 8 . 25 . 12 . 1 . 3 . 3 . 3 . 1 . 1 . 1 . 2 . 2 . 2 Successful 62 | . 4 9 7 . 19 . 10 . 1 . 2 . 2 . 2 . 1 . 1 . 1 . 1 . 1 . 1 Failed 22 | . 2 5 1 . 6 . 2 . . . 1 . 1 . 1 . . . . . . . 1 . 1 . 1 Catastrophic 4 | . . . . . 1 . 1 . . . . . . . . . . . . . . . 1 . . . 1 Database Lockouts 1 | . . 1 . . . . . . . . . . . . . . . . . . . . . . . . . Manual 25 | . 1 7 . . 10 . 4 . . . 1 . 2 . . . . . . . . . . . . . . Terminals 38 | . 2 9 . . 17 . 4 . . . 2 . 2 . 2 . . . . . . . . . . . . Fabricators 4 | . . . . . . . 2 . . . . . . . . . . . . . . . 1 . . . 1 Repair Stations 17 | . 4 . . . 7 . 5 . . . . . . . . . . . . . . . . . 1 . . Recycling Units 2 | . . 2 . . . . . . . . . . . . . . . . . . . . . . . . . Scanalyzers 11 | . . 4 7 . . . . . . . . . . . . . . . . . . . . . . . . Garrison Access 13 | . . . 1 . 1 . 1 . 1 . 1 . 1 . 1 . 1 . 1 . 1 . 1 . 1 . 1 Terminal Hacks 18 | . . 4 . . 8 . 3 . . . 1 . 1 . 1 . . . . . . . . . . . . Part Schematic 1 | . . 1 . . . . . . . . . . . . . . . . . . . . . . . . . Prototype ID Bank 2 | . . 1 . . 1 . . . . . . . . . . . . . . . . . . . . . . Open Door 1 | . . . . . . . . . . . 1 . . . . . . . . . . . . . . . . Terminal Index 1 | . . . . . 1 . . . . . . . . . . . . . . . . . . . . . . Unreport Threat 7 | . . 2 . . 1 . 3 . . . . . 1 . . . . . . . . . . . . . . Recall Reinforcements 1 | . . . . . 1 . . . . . . . . . . . . . . . . . . . . . . Zone Layout 5 | . . . . . 4 . . . . . . . . . 1 . . . . . . . . . . . . Fabricator Hacks 2 | . . . . . . . 2 . . . . . . . . . . . . . . . . . . . . Load Schematic 1 | . . . . . . . 1 . . . . . . . . . . . . . . . . . . . . Build 1 | . . . . . . . 1 . . . . . . . . . . . . . . . . . . . . Repair Station Hacks 13 | . 3 . . . 6 . 4 . . . . . . . . . . . . . . . . . . . . Scan Component 7 | . 2 . . . 3 . 2 . . . . . . . . . . . . . . . . . . . . Repair 6 | . 1 . . . 3 . 2 . . . . . . . . . . . . . . . . . . . . Recycling Unit Hacks . | . . . . . . . . . . . . . . . . . . . . . . . . . . . . Scanalyzer 9 | . . 3 6 . . . . . . . . . . . . . . . . . . . . . . . . Insert Component 4 | . . 1 3 . . . . . . . . . . . . . . . . . . . . . . . . Analyze 5 | . . 2 3 . . . . . . . . . . . . . . . . . . . . . . . . Garrison Access Hacks 13 | . . . 1 . 1 . 1 . 1 . 1 . 1 . 1 . 1 . 1 . 1 . 1 . 1 . 1 Unlock Access 12 | . . . 1 . 1 . 1 . 1 . 1 . 1 . 1 . 1 . 1 . 1 . 1 . 1 . . Seal Access 1 | . . . . . . . . . . . . . . . . . . . . . . . . . . . 1 Unauthorized Hacks 16 | . 2 5 . . 9 . . . . . . . . . . . . . . . . . . . . . . Terminals 6 | . 1 1 . . 4 . . . . . . . . . . . . . . . . . . . . . . Track 1 | . . . . . 1 . . . . . . . . . . . . . . . . . . . . . . Botnet 5 | . 1 1 . . 3 . . . . . . . . . . . . . . . . . . . . . . Fabricators . | . . . . . . . . . . . . . . . . . . . . . . . . . . . . Repair Stations . | . . . . . . . . . . . . . . . . . . . . . . . . . . . . Recycling Units 1 | . . 1 . . . . . . . . . . . . . . . . . . . . . . . . . Recyclers 1 | . . 1 . . . . . . . . . . . . . . . . . . . . . . . . . Scanalyzers . | . . . . . . . . . . . . . . . . . . . . . . . . . . . . Garrison Access . | . . . . . . . . . . . . . . . . . . . . . . . . . . . . Data Cores Recovered . | . . . . . . . . . . . . . . . . . . . . . . . . . . . . Used . | . . . . . . . . . . . . . . . . . . . . . . . . . . . . Hacking Detections 25 | . 2 4 2 . 4 . 3 . . . 1 . 2 . 1 . . . 1 . 1 . 2 . 1 . 1 Full Trace Events . | . . . . . . . . . . . . . . . . . . . . . . . . . . . . Feedback Events . | . . . . . . . . . . . . . . . . . . . . . . . . . . . . Feedback Blocked . | . . . . . . . . . . . . . . . . . . . . . . . . . . . . Robot Schematics Acquired . | . . . . . . . . . . . . . . . . . . . . . . . . . . . . Robots Built . | . . . . . . . . . . . . . . . . . . . . . . . . . . . . Matter . | . . . . . . . . . . . . . . . . . . . . . . . . . . . . Time . | . . . . . . . . . . . . . . . . . . . . . . . . . . . . Total Robot Build Rating . | . . . . . . . . . . . . . . . . . . . . . . . . . . . . Part Schematics Acquired 5 | . . 2 3 . . . . . . . . . . . . . . . . . . . . . . . . Parts Built 1 | . . . . . . . 1 . . . . . . . . . . . . . . . . . . . . Matter 102 | . . . . . . . 102 . . . . . . . . . . . . . . . . . . . . Time 17 | . . . . . . . 17 . . . . . . . . . . . . . . . . . . . . Total Part Build Rating 1 | . . . . . . . 1 . . . . . . . . . . . . . . . . . . . . Parts Repaired 6 | . 1 . . . 3 . 2 . . . . . . . . . . . . . . . . . . . . Time 213 | . 32 . . . 133 . 48 . . . . . . . . . . . . . . . . . . . . Parts Recycled . | . . . . . . . . . . . . . . . . . . . . . . . . . . . . Recycled Matter . | . . . . . . . . . . . . . . . . . . . . . . . . . . . . Retrieved Matter . | . . . . . . . . . . . . . . . . . . . . . . . . . . . . Retrieved Components . | . . . . . . . . . . . . . . . . . . . . . . . . . . . . Parts Scanalyzed 4 | . . 1 3 . . . . . . . . . . . . . . . . . . . . . . . . Part Schematics Acquired 4 | . . 1 3 . . . . . . . . . . . . . . . . . . . . . . . . Parts Damaged . | . . . . . . . . . . . . . . . . . . . . . . . . . . . . Bothacking | -11 -10 -9 -8 -8 -8 -8 -7 -7 -7 -7 -6 -6 -6 -6 -5 -5 -5 -5 -4 -4 -3 -3 -3 -3 -2 -2 -1 ------------ Run | Scr Mat Mat Mat Gar Mat Gar Fac Gar Fac Gar Fac Gar Fac Gar Fac Gar Fac Gar Fac Gar Res Gar Res Gar Res Gar Acc Used RIF Installer 12 | . . . . 1 . 1 . 1 . 1 . 1 . 1 . 1 . 1 . 1 . 1 . 1 . 1 . Coupler Efficiency 3 | . . . . . . . . . . 1 . . . . . 1 . . . . . 1 . . . . . Robot Detection 1 | . . . . . . . . . . . . 1 . . . . . . . . . . . . . . . Patrol Navigation 1 | . . . . . . . . . . . . . . . . . . . . 1 . . . . . . . Alert ID Control 1 | . . . . . . 1 . . . . . . . . . . . . . . . . . . . . . Structural Interface 1 | . . . . . . . . . . . . . . 1 . . . . . . . . . . . . . Program Shield 1 | . . . . . . . . . . . . . . . . . . 1 . . . . . . . . . Autooverride 2 | . . . . . . . . 1 . . . . . . . . . . . . . . . . . 1 . Crosswire 1 | . . . . . . . . . . . . . . . . . . . . . . . . 1 . . . Robots Hacked 151 | . . . . . . . 6 . 1 . 4 6 8 9 4 11 5 10 2 8 5 8 9 19 21 15 . Non-combat 14 | . . . . . . . 4 . . . 3 . 3 . . . . . . . 1 . 2 . 1 . . Combat 137 | . . . . . . . 2 . 1 . 1 6 5 9 4 11 5 10 2 8 4 8 7 19 20 15 . Autooverrided 48 | . . . . . . . . . . . . 1 1 2 1 3 1 4 . 2 2 5 . 10 6 10 . Robot Hacks Applied 119 | . . . . . . . 8 . 2 . 5 5 8 7 5 8 5 7 3 6 4 6 10 10 15 5 . no_distress 1 | . . . . . . . 1 . . . . . . . . . . . . . . . . . . . . ignore_repairs 1 | . . . . . . . . . . . . . . . . . . . . . . . 1 . . . . map_walls 1 | . . . . . . . 1 . . . . . . . . . . . . . . . . . . . . map_earth 1 | . . . . . . . . . . . 1 . . . . . . . . . . . . . . . . drop_inventory 4 | . . . . . . . 1 . . . 1 . 1 . . . . . . . 1 . . . . . . ignore_parts 3 | . . . . . . . . . . . . . 2 . . . . . . . . . 1 . . . . purge_threat 1 | . . . . . . . 1 . . . . . . . . . . . . . . . . . . . . map_route 2 | . . . . . . . . . . . 1 . . . . . . . . . . . . . 1 . . find_garrison 10 | . . . . . . . 1 . 1 . 1 . 1 . 1 . 1 . 1 . 1 . 1 . 1 . . spike_heat 1 | . . . . . . . . . . . . . . 1 . . . . . . . . . . . . . amplify_resonance 6 | . . . . . . . . . . . . . . 3 . . . 2 . . . . . . 1 . . wipe_record 1 | . . . . . . . . . . . . . . . . . . . . . 1 . . . . . . disable_weapons 1 | . . . . . . . . . . . . 1 . . . . . . . . . . . . . . . go_dormant 1 | . . . . . . . . . . . . . 1 . . . . . . . . . . . . . . overwrite_iff 38 | . . . . . . . . . 1 . . 2 1 3 2 4 3 2 1 . . 3 1 6 5 4 . streamctrl_high 2 | . . . . . . . 1 . . . . . . . . . 1 . . . . . . . . . . formatsys_low 1 | . . . . . . . 1 . . . . . . . . . . . . . . . . . . . . formatsys_high 44 | . . . . . . . 1 . . . 1 2 2 . 2 4 . 3 1 6 1 3 6 4 7 1 . Relay Couplers Released 93 | . . . . . . 13 . 7 . 4 . 6 . 10 . 10 . . . 12 . 11 . 17 . 3 . Machine Destruction 93 | . . . . . . 13 . 7 . 4 . 6 . 10 . 10 . . . 12 . 11 . 17 . 3 . Attached 66 | . . . . . . . 2 . 1 1 4 2 2 5 2 7 2 1 1 9 4 2 5 5 8 3 . Crosswired 13 | . . . . . . . . . . . . . . . . . . . . . . . . 11 . 2 . Robots Rewired 1 | . . . . . . . . . . . . . . . . . . . . . . 1 . . . . . Allies Hacked 4 | . . . . . . . . . . . . . . . 4 . . . . . . . . . . . . Hacks Repelled . | . . . . . . . . . . . . . . . . . . . . . . . . . . . . Allies | -11 -10 -9 -8 -8 -8 -8 -7 -7 -7 -7 -6 -6 -6 -6 -5 -5 -5 -5 -4 -4 -3 -3 -3 -3 -2 -2 -1 -------- Run | Scr Mat Mat Mat Gar Mat Gar Fac Gar Fac Gar Fac Gar Fac Gar Fac Gar Fac Gar Fac Gar Res Gar Res Gar Res Gar Acc Total Allies 128 | . . . . . . . 3 . 1 . 1 5 4 5 4 11 4 9 2 8 3 9 7 19 18 15 . Largest Group 5 | . . . . . . . 2 2 1 . 1 2 1 2 2 4 1 2 1 3 3 2 5 3 4 3 . Highest-Rated Group 266 | . . . . . . . 27 27 12 . 32 73 32 58 78 112 47 98 49 145 162 94 266 144 223 118 . Highest-Rated Ally 69 | . . . . . . . 16 16 12 . 32 41 32 32 49 29 47 49 49 56 64 58 58 50 69 58 . Total Orders 8 | . . . . . . . 1 . . . . . . . . . . . . 1 . . 4 . 2 . . STAY 4 | . . . . . . . . . . . . . . . . . . . . 1 . . 2 . 1 . . GOTO 1 | . . . . . . . . . . . . . . . . . . . . . . . 1 . . . . FOLLOW 2 | . . . . . . . . . . . . . . . . . . . . . . . 1 . 1 . . AID 1 | . . . . . . . 1 . . . . . . . . . . . . . . . . . . . . Ally Attacks 418 | . . . . . . . 4 4 4 . 5 23 4 10 8 43 11 26 3 23 16 50 35 73 53 23 . Total Damage 13526 | . . . . . . . 29 60 50 . 135 412 139 160 215 716 425 705 96 947 592 1428 2074 2585 2165 593 . Kills 64 | . . . . . . . . . 1 . 2 1 1 2 4 4 1 7 . 3 1 4 12 13 7 1 . Allies Corrupted 8 | . . . . . . . . . . . . . . . . . . . . . 1 . 5 . 1 1 . Allies Melted . | . . . . . . . . . . . . . . . . . . . . . . . . . . . . Intel | -11 -10 -9 -8 -8 -8 -8 -7 -7 -7 -7 -6 -6 -6 -6 -5 -5 -5 -5 -4 -4 -3 -3 -3 -3 -2 -2 -1 ------- Run | Scr Mat Mat Mat Gar Mat Gar Fac Gar Fac Gar Fac Gar Fac Gar Fac Gar Fac Gar Fac Gar Res Gar Res Gar Res Gar Acc Robot Analysis Total . | . . . . . . . . . . . . . . . . . . . . . . . . . . . . Derelict Logs Recovered . | . . . . . . . . . . . . . . . . . . . . . . . . . . . . Drone Launches . | . . . . . . . . . . . . . . . . . . . . . . . . . . . . Drone Recoveries . | . . . . . . . . . . . . . . . . . . . . . . . . . . . . Exploration | -11 -10 -9 -8 -8 -8 -8 -7 -7 -7 -7 -6 -6 -6 -6 -5 -5 -5 -5 -4 -4 -3 -3 -3 -3 -2 -2 -1 ------------- Run | Scr Mat Mat Mat Gar Mat Gar Fac Gar Fac Gar Fac Gar Fac Gar Fac Gar Fac Gar Fac Gar Res Gar Res Gar Res Gar Acc Turns Passed 20836 | 158 614 707 748 229 1153 1097 975 688 240 567 691 669 777 1034 551 796 286 567 556 1174 752 1810 1407 1584 693 172 141 Spaces Moved 9552 | 109 413 503 384 118 512 521 378 256 105 237 303 230 350 391 224 368 101 251 259 488 244 629 486 648 551 204 289 Core 546 | 2 . . . . . . . . . . . . . . . . . . . . 1 . . . 401 142 . Treads 4951 | . . . . 101 25 521 68 256 . 91 . 81 17 131 37 368 101 251 259 488 243 629 486 648 150 . . Legs . | . . . . . . . . . . . . . . . . . . . . . . . . . . . . Wheels 3704 | 107 413 503 384 17 487 . 310 . 105 146 303 149 333 260 187 . . . . . . . . . . . . Hover . | . . . . . . . . . . . . . . . . . . . . . . . . . . . . Flight 351 | . . . . . . . . . . . . . . . . . . . . . . . . . . 62 289 Fastest Speed 37 | 50 80 100 120 120 110 180 160 200 200 180 190 170 180 190 180 180 180 180 180 180 180 180 200 190 50 37 40 Average Speed 164 | 79 94 108 120 171 136 180 187 200 200 193 190 210 192 220 187 180 180 180 180 200 209 194 209 197 93 57 40 Slowest Speed 1850 | 80 110 110 160 180 220 180 240 200 200 240 190 260 260 280 190 180 180 180 180 210 1850 200 210 210 210 200 40 Overloaded Moves . | . . . . . . . . . . . . . . . . . . . . . . . . . . . . Propulsion Burnouts . | . . . . . . . . . . . . . . . . . . . . . . . . . . . . Robots Hopped 4 | . . . . . . . . . . . . . . . . . . . . . . . . . . . 4 Cave-ins Triggered 1 | . . . . . . . . . . . . . . . . 1 . . . . . . . . . . . Exploration Rate (%) 35 | 5 59 50 37 28 55 59 12 47 4 35 12 48 13 49 5 69 3 50 12 73 8 72 19 87 16 46 11 Regions Visited 27 Branch Regions . Pre-discovered Areas . | . . . . . . . . . . . . . . . . . . . . . . . . . . . . Known Exits Taken 12 | . . . 1 . 1 . 1 . 1 . 1 . 1 . 1 . 1 . 1 . 1 . 1 . 1 . . Unknown Exits Taken 3 | 1 1 1 . . . . . . . . . . . . . . . . . . . . . . . . . Scrap Searched . | . . . . . . . . . . . . . . . . . . . . . . . . . . . . Spaces Dug 91 | . . . . . 13 1 . . . . 3 . 4 1 9 35 6 . 3 . 4 1 1 2 5 . 3 Terrain Destroyed 323 | . . . 26 . 32 18 4 2 1 20 7 32 4 42 11 45 6 7 11 3 4 12 6 11 5 . 14 Melee 51 | . . . . . . . . . . . 3 . 4 . 9 12 6 . 3 . 4 1 1 . 5 . 3 Projectile 54 | . . . . . . 1 4 2 1 1 4 4 . 4 2 . . . . 3 . 11 5 11 . . 1 AOE 218 | . . . 26 . 32 17 . . . 19 . 28 . 38 . 33 . 7 8 . . . . . . . 10 Actions | -11 -10 -9 -8 -8 -8 -8 -7 -7 -7 -7 -6 -6 -6 -6 -5 -5 -5 -5 -4 -4 -3 -3 -3 -3 -2 -2 -1 --------- Run | Scr Mat Mat Mat Gar Mat Gar Fac Gar Fac Gar Fac Gar Fac Gar Fac Gar Fac Gar Fac Gar Res Gar Res Gar Res Gar Acc Total 12972 | 145 566 601 577 130 802 620 574 352 126 319 386 346 420 531 295 465 185 326 316 612 398 1025 747 852 708 249 299 Wait 1086 | . 75 9 23 . 142 14 92 24 6 2 31 11 15 34 3 15 58 15 . 13 72 189 116 37 74 16 . Move 9523 | 108 412 502 384 117 512 520 378 255 105 236 303 228 350 389 223 366 101 250 259 486 244 628 486 647 551 203 280 Hop 4 | . . . . . . . . . . . . . . . . . . . . . . . . . . . 4 Pick Up 301 | 10 11 24 37 . 12 14 18 9 1 6 7 7 6 18 5 8 . 7 7 18 7 20 13 26 8 . 2 Fast Attach 88 | 6 6 . 5 . 4 1 5 . . 4 . 4 2 3 1 4 . 1 1 2 3 7 4 8 9 6 2 Attach 126 | 1 3 2 9 . 3 4 5 . . 6 2 4 2 4 7 4 2 4 6 10 10 9 9 8 7 3 2 Detach 20 | . . . 1 . 1 . 1 . . 2 . . . . 2 1 . 1 3 . . 1 2 . 2 3 . Swap 230 | . 7 9 15 2 20 7 14 1 5 6 12 10 12 14 7 9 4 2 1 12 5 20 10 17 6 3 . Drop 273 | 1 12 19 32 . 21 8 14 9 2 14 8 10 5 16 2 8 . 6 9 10 3 15 9 33 5 . 2 Fire 889 | 19 40 36 63 9 87 34 31 44 4 19 13 43 14 22 29 20 13 16 9 32 39 85 59 68 30 10 1 Melee 253 | . . . . . . . 15 . 3 . 8 13 14 6 12 16 6 23 21 17 12 41 29 4 6 1 6 Ram 14 | . . . . . . . . . . . 2 . . . . . . . . . . . . . 8 4 . Kick . | . . . . . . . . . . . . . . . . . . . . . . . . . . . . Crush 8 | . . . . . . . . . . . . . . . . . . . . . 2 . 6 . . . . Escape Stasis 130 | . . . . 2 . 18 . 10 . 24 . 16 . 25 . 11 . . . 10 . 10 2 2 . . . Rewire 19 | . . . . . . . 1 . . . . . . . 4 3 1 1 . 2 1 . 2 2 2 . . Trap 8 | . . . 8 . . . . . . . . . . . . . . . . . . . . . . . . Miscellaneous . | . . . . . . . . . . . . . . . . . . . . . . . . . . . . Route ------- -11/Scrapyard -10/Materials -9/Materials -8/Materials -8/Garrison -8/Materials (discovered 2 exits: *Fac / Gar) -8/Garrison (discovered 2 exits: *Fac x2) -7/Factory -7/Garrison -7/Factory -7/Garrison -6/Factory (discovered 2 exits: [*Ext] / Gar) -6/Garrison -6/Factory -6/Garrison -5/Factory (discovered 2 exits: [*Upp] / Gar) -5/Garrison (discovered 2 exits: *Fac x2) -5/Factory -5/Garrison (discovered 2 exits: *Fac x2) -4/Factory -4/Garrison (discovered 2 exits: *Res x2) -3/Research -3/Garrison (discovered 2 exits: *Res x2) -3/Research (discovered 2 exits: [*Arm] / Gar) -3/Garrison (discovered 3 exits: *Res x3) -2/Research -2/Garrison -1/Access To Epsilon Eridani History --------- Turn | Location | Event 2 | -11/Scrapyard | Met Revision 17 7 | -11/Scrapyard | Discovered new exit (range 16) 159 | -11/Scrapyard | Entered Materials 300 | -10/Materials | Build established: Mutant 551 | -10/Materials | Discovered new exit (range 13) 750 | -10/Materials | Repaired Particle Gun 773 | -10/Materials | Entered another Materials area 773 | -9/Materials | Evolved 2 slots: Utility x2 1075 | -9/Materials | Build established: Hauler-Mutant 1144 | -9/Materials | Central database locked down 1466 | -9/Materials | Discovered new exit (range 9) 1480 | -9/Materials | Entered another Materials area 1480 | -8/Materials | Evolved 2 slots: Utility x2 1654 | -8/Materials | Destroyed 7 combat bots 1826 | -8/Materials | Lost 3 parts (1p1n1u) 2228 | -8/Materials | Identified exit to Garrison 2228 | -8/Materials | Entered Garrison 2281 | -8/Garrison | Triggered checkpoint 2369 | -8/Garrison | Discovered new exit (range 14) 2405 | -8/Garrison | Installed Relay Interface Framework 2457 | -8/Garrison | Entered Materials 2854 | -8/Materials | Repaired Mic. Nuclear Core 2907 | -8/Materials | Repaired Imp. Assault Rifle 3199 | -8/Materials | Repaired Imp. Light Armor Plating 3274 | -8/Materials | Core integrity fell below 50% 3409 | -8/Materials | Discovered new exit (range 9) 3610 | -8/Materials | Identified exit to Garrison 3610 | -8/Materials | Entered Garrison 3654 | -8/Garrison | Triggered checkpoint 3670 | -8/Garrison | Triggered checkpoint 3715 | -8/Garrison | Destroyed 9 combat bots 3791 | -8/Garrison | Discovered new exit (range 12) 3959 | -8/Garrison | Discovered new exit (range 10) 3988 | -8/Garrison | Expanded RIF knowledge: Alert ID Control 4032 | -8/Garrison | Triggered checkpoint 4129 | -8/Garrison | Garrison Relay disabled 4238 | -8/Garrison | Triggered checkpoint 4336 | -8/Garrison | Triggered checkpoint 4384 | -8/Garrison | Garrison Relay disabled 4576 | -8/Garrison | Triggered checkpoint 4618 | -8/Garrison | Garrison Relay disabled 4698 | -8/Garrison | Build established: Bothacker-Mutant 4707 | -8/Garrison | Entered Factory 4707 | -7/Factory | Evolved 2 slots: Utility x2 4760 | -7/Factory | Repaired Arm. Wheel 4855 | -7/Factory | Fabricated Hcp. Storage Unit (x1) 5000 | -7/Factory | Local fabrication network quarantined 5151 | -7/Factory | Repaired Mni. Grenade Launcher 5682 | -7/Factory | Identified exit to Garrison 5682 | -7/Factory | Entered Garrison 5682 | -7/Garrison | Accompanied by 2 allies 5694 | -7/Garrison | Expanded RIF knowledge: Autooverride 5818 | -7/Garrison | Triggered checkpoint 5885 | -7/Garrison | Garrison Relay disabled 5992 | -7/Garrison | Triggered checkpoint 6255 | -7/Garrison | Discovered new exit (range 15) 6270 | -7/Garrison | Triggered checkpoint 6302 | -7/Garrison | Garrison Relay disabled 6370 | -7/Garrison | Entered Factory 6610 | -7/Factory | Identified exit to Garrison 6610 | -7/Factory | Entered Garrison 6682 | -7/Garrison | Triggered checkpoint 6715 | -7/Garrison | Garrison Relay disabled 6868 | -7/Garrison | Triggered checkpoint 7056 | -7/Garrison | Triggered checkpoint 7135 | -7/Garrison | Discovered new exit (range 12) 7168 | -7/Garrison | Expanded RIF knowledge: Coupler Efficiency 7177 | -7/Garrison | Entered Factory 7177 | -6/Factory | Evolved 2 slots: Utility x2 7490 | -6/Factory | Build established: Botlord-Mutant 7695 | -6/Factory | Discovered new exit (range 6) 7868 | -6/Factory | Identified exit to Garrison 7868 | -6/Factory | Entered Garrison 7868 | -6/Garrison | Accompanied by 1 ally 7924 | -6/Garrison | Triggered checkpoint 7988 | -6/Garrison | Garrison Relay disabled 8152 | -6/Garrison | Triggered checkpoint 8198 | -6/Garrison | Triggered checkpoint 8268 | -6/Garrison | Triggered checkpoint 8306 | -6/Garrison | Triggered checkpoint 8350 | -6/Garrison | Garrison Relay disabled 8485 | -6/Garrison | Discovered new exit (range 9) 8524 | -6/Garrison | Expanded RIF knowledge: Robot Detection 8537 | -6/Garrison | Entered Factory 9159 | -6/Factory | Spotted B-75 Beast 9314 | -6/Factory | Identified exit to Garrison 9314 | -6/Factory | Entered Garrison 9464 | -6/Garrison | Triggered checkpoint 9520 | -6/Garrison | Triggered checkpoint 9646 | -6/Garrison | Discovered new exit (range 15) 9707 | -6/Garrison | Expanded RIF knowledge: Structural Interface 9832 | -6/Garrison | Triggered checkpoint 9923 | -6/Garrison | Garrison Relay disabled 10092 | -6/Garrison | Triggered checkpoint 10149 | -6/Garrison | Garrison Relay disabled 10348 | -6/Garrison | Entered Factory 10348 | -5/Factory | Evolved 2 slots: Utility x2 10653 | -5/Factory | P-70 Sage assimilated allied Sentinel 6a 10707 | -5/Factory | Lost 3 parts (1n2u) 10859 | -5/Factory | Discovered new exit (range 6) 10888 | -5/Factory | Identified exit to Garrison 10899 | -5/Factory | Entered Garrison 10899 | -5/Garrison | Accompanied by 1 ally 10954 | -5/Garrison | Triggered checkpoint 11011 | -5/Garrison | Garrison Relay disabled 11125 | -5/Garrison | Triggered checkpoint 11225 | -5/Garrison | Crushed by falling debris 11226 | -5/Garrison | System corruption reached 10% 11292 | -5/Garrison | Discovered new exit (range 9) 11438 | -5/Garrison | Garrison Relay disabled 11458 | -5/Garrison | Triggered checkpoint 11538 | -5/Garrison | Triggered checkpoint 11538 | -5/Garrison | Spotted B-75 Beast 11554 | -5/Garrison | Triggered checkpoint 11652 | -5/Garrison | Discovered new exit (range 14) 11686 | -5/Garrison | Expanded RIF knowledge: Coupler Efficiency 11695 | -5/Garrison | Entered Factory 11981 | -5/Factory | Identified exit to Garrison 11981 | -5/Factory | Entered Garrison 12064 | -5/Garrison | Triggered checkpoint 12091 | -5/Garrison | Triggered checkpoint 12224 | -5/Garrison | Discovered new exit (range 11) 12512 | -5/Garrison | Discovered new exit (range 11) 12541 | -5/Garrison | Expanded RIF knowledge: Program Shield 12548 | -5/Garrison | Entered Factory 12548 | -4/Factory | Evolved 2 slots: Utility x2 13104 | -4/Factory | Identified exit to Garrison 13104 | -4/Factory | Entered Garrison 13104 | -4/Garrison | Accompanied by 1 ally 13166 | -4/Garrison | Spotted B-86 Titan 13244 | -4/Garrison | Triggered checkpoint 13249 | -4/Garrison | Triggered checkpoint 13284 | -4/Garrison | Lost 3 parts (3u) 13436 | -4/Garrison | Destroyed B-86 Titan 13466 | -4/Garrison | Triggered checkpoint 13521 | -4/Garrison | Garrison Relay disabled 13669 | -4/Garrison | Discovered new exit (range 9) 13682 | -4/Garrison | Triggered checkpoint 13756 | -4/Garrison | Garrison Relay disabled 14028 | -4/Garrison | Triggered checkpoint 14071 | -4/Garrison | Discovered new exit (range 10) 14101 | -4/Garrison | Expanded RIF knowledge: Patrol Navigation 14183 | -4/Garrison | Garrison Relay disabled 14278 | -4/Garrison | Entered Research 14278 | -3/Research | Accompanied by 3 allies 14278 | -3/Research | Evolved 2 slots: Utility x2 14685 | -3/Research | Lost 3 parts (2u1w) 14983 | -3/Research | Found Com. Tesla Bomb Launcher 15030 | -3/Research | Identified exit to Garrison 15030 | -3/Research | Entered Garrison 15060 | -3/Garrison | Triggered checkpoint 15133 | -3/Garrison | System corruption reached 10% 15222 | -3/Garrison | Garrison Relay disabled 15318 | -3/Garrison | Triggered checkpoint 15319 | -3/Garrison | Spotted B-86 Titan 15484 | -3/Garrison | Triggered checkpoint 15502 | -3/Garrison | Destroyed B-86 Titan 15530 | -3/Garrison | Lost 6 parts (1p1n4u) 15600 | -3/Garrison | Triggered checkpoint 15624 | -3/Garrison | Found Hvy. Reflective Plating 15636 | -3/Garrison | Triggered checkpoint 15777 | -3/Garrison | Discovered new exit (range 12) 15809 | -3/Garrison | Expanded RIF knowledge: Coupler Efficiency 15856 | -3/Garrison | Triggered checkpoint 15957 | -3/Garrison | Build established: Scavenger-Mutant 15971 | -3/Garrison | Garrison Relay disabled 16287 | -3/Garrison | Discovered new exit (range 10) 16340 | -3/Garrison | Triggered checkpoint 16483 | -3/Garrison | Garrison Relay disabled 16840 | -3/Garrison | Entered Research 16961 | -3/Research | Spotted B-86 Titan 17732 | -3/Research | Build established: Botlord-Mutant 18148 | -3/Research | Discovered new exit (range 6) 18247 | -3/Research | Identified exit to Garrison 18247 | -3/Research | Entered Garrison 18278 | -3/Garrison | Triggered checkpoint 18466 | -3/Garrison | Garrison Relay disabled 18681 | -3/Garrison | Spotted B-86 Titan 18702 | -3/Garrison | Spotted B-86 Titan 18702 | -3/Garrison | Spotted B-86 Titan 18734 | -3/Garrison | Triggered checkpoint 18738 | -3/Garrison | Triggered checkpoint 18740 | -3/Garrison | Core integrity fell below 50% 18794 | -3/Garrison | Triggered checkpoint 18800 | -3/Garrison | Allies destroyed B-86 Titan 18952 | -3/Garrison | Discovered new exit (range 14) 19123 | -3/Garrison | Discovered new exit (range 12) 19162 | -3/Garrison | Expanded RIF knowledge: Crosswire 19268 | -3/Garrison | Triggered checkpoint 19290 | -3/Garrison | Garrison Relay disabled 19553 | -3/Garrison | Discovered new exit (range 12) 19627 | -3/Garrison | Triggered checkpoint 19745 | -3/Garrison | Garrison Relay disabled 19831 | -3/Garrison | Entered Research 19831 | -2/Research | Accompanied by 1 ally 19831 | -2/Research | Evolved 2 slots: Utility x2 20172 | -2/Research | Garrison activated, responded to threat 20189 | -2/Research | Spotted B-90 Cyclops 20252 | -2/Research | Lost 3 parts (3u) 20262 | -2/Research | Released all parts (17) 20459 | -2/Research | Spotted B-90 Cyclops 20469 | -2/Research | Core integrity fell below 50% 20498 | -2/Research | Lost 6 parts (2n4u) 20524 | -2/Research | Identified exit to Garrison 20524 | -2/Research | Entered Garrison 20527 | -2/Garrison | Expanded RIF knowledge: Autooverride 20540 | -2/Garrison | Garrison Relay disabled 20577 | -2/Garrison | Triggered checkpoint 20579 | -2/Garrison | Spotted B-90 Cyclops 20582 | -2/Garrison | Triggered checkpoint 20654 | -2/Garrison | Triggered checkpoint 20656 | -2/Garrison | Core integrity fell below 20% 20691 | -2/Garrison | Discovered new exit (range 12) 20696 | -2/Garrison | Entered Access 20696 | -1/Access | Evolved 2 slots: Propulsion x2 20708 | -1/Access | Energy Cycler disabled 20777 | -1/Access | Build established: Mutant 20835 | -1/Access | Discovered new exit (range 6) 20837 | *** | Escaped! Last Messages --------------- 20800_ U-05 Engineer builds a Wall. 20801_ Acquired Imp. Antigrav System. 20809_ Sneak attack on U-05 Engineer. 20809_ Destroyed Welding Torch. 20809_ Destroyed Unknown Wheel. 20809_ ALERT: Construction progress impeded, dispatching reinforcements to local area. 20811_ Penetrated by Slug. 20811_ Slug penetrates Wall. 20816_ W-44 Eye sends out distress signal. 20820_ ALERT: Hostiles spotted, dispatching reinforcements to Terminal A011. 20825_ Penetrated by Slug. 20825_ Lgt. Ion Engine destroyed. 20825_ Penetrated by Slug. 20825_ Relay Coupler [C] destroyed. 20826_ Penetrated by Slug. 20829_ Slug penetrates Wall. 20835_ The Access Shell folds into the floor. 20835_ EXIT=FOUND Map ----- +----------------------------------------------------+ | ?????????????????????????????????????????????????? | | ?????????????????????????????????????????????????? | | ?????????????????????????????????????????????????? | | ?????????????????????????????????????????????????? | | ?????????????????????????????????????????????????? | | ?????????????????????????????????????????????????? | | ?????????????????????????????????????????????????? | | ?????????????????????????????????????????????????? | | ?????????????????????????????????????????????????? | | ?????????????????????????????????????????????????? | | ?????????????????????????????????????????????????? | | ?????????????????????????????????????????????????? | | ?????????????????????????????????????????????????? | | ?????????????????????????????????????????????????? | | ??????????# ????????????????????????????????????? | | ??????????# ????????????????????????????????????? | | ??????????# ????????????????????????????????????? | | ??????????# ????????????????????????????????????? | | ??????????# ??????###???????????????????????????? | | ??????????# ####### ##########??????????????????? | | ??????????# """T""" "??????????????????? | | ??????????# R""" """ "??????????????????? | | ??????????# "??????????????????? | | ??????????# "??????????????????? | | ??????????# "" "??????????????????? | | ###???????# @" "??????????????????? | | #???????# "??????????????????? | | #???????# "??????????????????? | | #???????# "??????????????????? | | ""#???????# "??????????????????? | | ""#???????# ####### ##########??????????????????? | | ""#???????# #?????###???????????????????????????? | | G#???????# #???????????????????????????????????? | | ""#???????# #???????????????????????????????????? | | ""#???????# #???????????????????????????????????? | | ""##??????# +???????????????????????????????????? | | ######## #???????????????????????????????????? | | # #???????????????????????????????????? | | #### +???????????????????????????????????? | | ???# ###### #???????????????????????????????????? | | ???# #????? #???????????????????????????????????? | | ???# #????? #???????????????????????????????????? | | ???# ######/##??????????????????????????????????? | | #### # ??????????????????????????????????? | | # ???????????????????????????????????? | | # """"???????????????????????????????????? | | #### # """"???????????????????????????????????? | | ???# # """""??????????????????????????????????? | | ???# # """"" T#?????????????????????????????? | | ???# / """"" ""#?????????????????????????????? | +----------------------------------------------------+ Best States ------------- Heat Dissipation 77 Energy Generation 23 Energy Capacity 340 Matter Stores 400 Matter Capacity 450 Sight Range 16 Terrain Scan Density 10 Armor Coverage 1200 Resistance: TH 25 Resistance: EM 20 Core Shielding 30 Weapon Shielding 66 Evasion (%) 62 Target Analysis 8 Armor Integrity Analysis 66 Recoil Reduction 2 Item Schematics ----------------- Arm. Wheel | -9/Materials | Scanalyzed Hcp. Storage Unit | -9/Materials | Hacked Datajack | -8/Materials | Scanalyzed Imp. Light Cannon | -8/Materials | Scanalyzed Med. Armor Plating | -8/Materials | Scanalyzed Robot Schematics ------------------ None Fabricated ------------ Hcp. Storage Unit | x1 | -7/Factory Alien Tech Used ----------------- None Achievements -------------- None Challenges ------------ None Game ------ Seed HardlightFortressWings Manual? 0 Play Time 02:24:45 Cumulative 424.2 hours Start 2019.12.30 @ 10:13:05 End 2019.12.30 @ 12:36:52 Sessions 1 Manual Loads 0 Difficulty Rogue Special Mode None Game No. 742 Rogue 742 Adventurer 0 Explorer 0 Win Type 0 Total 31 Types 24/0/3/3/1/0/0 Lore% 93 Gallery% 91 Achievement% 80 Wizard Run 0 Options --------- ASCII 1 Keyboard 0 Movement Numpad Keybinds 0 Fullscreen 0 Font 14/SmallcapsGlow Map View 76x50 Tactical HUD 1 Map Filters NONE Filters NONE Steam 1 RUN: 340ca958-85dc-4ec4-997f-6f0b6189c628